fUST/lending_fUST_20251030
["ID","MTS","AMOUNT","RATE_DAILY","PERIOD"]
[392623216,1761753603124,1416.24,0.00017429,2]
[392623217,1761753616940,196.0,0.000175,2]
[392623220,1761753640039,196.0,0.000175,2]
[392623221,1761753657545,5000.0,0.000175,2]
[392623223,1761753667317,166.38,0.00014755,30]
[392623224,1761753667764,332.76,0.00017214,30]
[392623229,1761753673746,500.01,0.00027397,120]
[392623237,1761753683582,5000.0,0.000181,5]
[392623245,1761753707780,5000.0,0.000181,5]
[392623254,1761753730721,5000.0,0.000181,5]
[392623258,1761753752469,163.66,0.00014569,30]
[392623260,1761753753282,327.31,0.00016997,30]
[392623278,1761753835061,160.98,0.00014831,30]
[392623279,1761753835603,321.96,0.00017302,30]
[392623294,1761753852919,588.0,0.000176,2]
[392623305,1761753903104,512.0,0.00017429,2]
[392623306,1761753903132,904.24,0.00017429,2]
[392623321,1761753920057,158.34,0.00015205,30]
[392623322,1761753920485,316.69,0.00017739,30]
[392623326,1761753921735,728.19222484,0.000175,2]
[392623604,1761754004772,155.75,0.0001519,30]
[392623608,1761754005225,311.51,0.00017722,30]
[392623730,1761754029136,-490.3196387,0.00017905,2]
[392623731,1761754040078,-601.21076765,0.00017905,2]
[392623732,1761754048077,-165.46393467,0.00017905,2]
[392623806,1761754091128,153.2,0.00014811,30]
[392623807,1761754091596,306.41,0.00017279,30]
[392623808,1761754146116,-1777.10666029,0.00017726,2]
[392623809,1761754160107,-3222.89333971,0.00017726,2]
[392623810,1761754160128,-162.5496416,0.00017995,2]
[392623811,1761754160149,-1000.0,0.00018142,2]
[392623812,1761754160170,-1200.0,0.00018514,2]
[392623813,1761754160192,-300.0,0.00018514,2]
[392623815,1761754160213,-300.0,0.00018515,2]
[392623816,1761754160233,-300.0,0.00018515,2]
[392623817,1761754160255,-1200.0,0.00018515,2]
[392623818,1761754160277,-300.0,0.00018516,2]
[392623820,1761754160297,-300.0,0.00018516,2]
[392623821,1761754160316,-331.14875729,0.0001872,2]
[392623822,1761754160336,-19094.48529874,0.0001872,2]
[392623823,1761754160357,-333.16701417,0.00018917,2]
[392623824,1761754160377,-2868.4410876,0.00019,2]
[392623825,1761754173587,150.7,0.00014544,30]
[392623826,1761754174055,301.4,0.00016967,30]
[392623827,1761754223296,170.019357,0.00030137,120]
[392623864,1761754232180,-3921.2,0.0001881,2]
[392623865,1761754232192,-556.55812943,0.0001881,2]
[392623868,1761754232317,-522.24187057,0.0001881,2]
[392623870,1761754232327,-1104.9589126,0.00019,2]
[392623871,1761754232336,-452.09,0.00019391,30]
[392623872,1761754232345,-300.0,0.000195,2]
[392623873,1761754232354,-252.48340892,0.00019501,2]
[392623874,1761754232366,-745.87621823,0.00019501,2]
[392623875,1761754232375,-1200.0,0.00019501,2]
[392623876,1761754232385,-500.0,0.00019502,2]
[392623877,1761754232394,-300.0,0.00019572,2]
[392623878,1761754232403,-300.0,0.00019572,2]
[392623879,1761754232413,-300.0,0.00019572,2]
[392623880,1761754232422,-300.0,0.00019572,2]
[392623881,1761754232432,-183.80555079,0.00019573,2]
[392623882,1761754232441,-1862.50630369,0.00019573,2]
[392623883,1761754232451,-661.18425653,0.000196,2]
[392623884,1761754232461,-151.0,0.000196,2]
[392623885,1761754232470,-151.0,0.000196,2]
[392623886,1761754232480,-151.0,0.000196,2]
[392623887,1761754232489,-151.0,0.000196,2]
[392623888,1761754232498,-151.0,0.000196,2]
[392623889,1761754232507,-151.0,0.000196,2]
[392623890,1761754232516,-151.0,0.000196,2]
[392623891,1761754232525,-151.0,0.000196,2]
[392623892,1761754232538,-151.0,0.000196,2]
[392623893,1761754232548,-151.0,0.000196,2]
[392623894,1761754232567,-151.0,0.000196,2]
[392623895,1761754232578,-151.0,0.000196,2]
[392623896,1761754232590,-151.0,0.000196,2]
[392623897,1761754232601,-151.0,0.000196,2]
[392623898,1761754232612,-151.0,0.000196,2]
[392623899,1761754232622,-151.0,0.000196,2]
[392623900,1761754232632,-151.0,0.000196,2]
[392623902,1761754232642,-151.0,0.000196,2]
[392623904,1761754232651,-151.0,0.000196,2]
[392623905,1761754232661,-151.0,0.000196,2]
[392623907,1761754232671,-2950.98,0.00019602,3]
[392623909,1761754232681,-1475.49,0.00019602,3]
[392623910,1761754232690,-737.75,0.00019602,3]
[392623911,1761754232699,-368.87,0.00019602,3]
[392623912,1761754232709,-184.44,0.00019602,3]
[392623913,1761754232720,-337.33322311,0.00019611,2]
[392623914,1761754232729,-370000.0,0.00019612,2]
[392623915,1761754232739,-500.0,0.00019673,2]
[392623916,1761754232748,-500.0,0.00019673,2]
[392623917,1761754232758,-500.0,0.00019673,2]
[392623918,1761754232768,-500.0,0.00019673,2]
[392623919,1761754232777,-600.0,0.00019988,2]
[392623920,1761754232788,-191.80857709,0.00019995,2]
[392623921,1761754232797,-1200.0,0.0002019,2]
[392623922,1761754232811,-500.0,0.00020221,2]
[392623923,1761754232821,-500.0,0.00020221,2]
[392623924,1761754232831,-500.0,0.00020221,2]
[392623925,1761754232840,-500.0,0.00020221,2]
[392623926,1761754232854,-5901.96,0.00020972,3]
[392623927,1761754232863,-2950.98,0.00020972,3]
[392623928,1761754232872,-1475.5,0.00020972,3]
[392623929,1761754232884,-737.74,0.00020972,3]
[392623930,1761754232893,-500.0,0.0002107,2]
[392623931,1761754232903,-500.0,0.0002107,2]
[392623932,1761754232912,-500.0,0.0002107,2]
[392623933,1761754232925,-500.0,0.0002107,2]
[392623934,1761754232934,-338.0,0.00021244,2]
[392623935,1761754232944,-183.80555077,0.00021249,2]
[392623936,1761754232954,-984.0,0.00021302,2]
[392623937,1761754232964,-633.0,0.00021302,2]
[392623938,1761754232973,-2167.0,0.00021302,2]
[392623939,1761754232983,-412.0,0.00021312,2]
[392623940,1761754232993,-420.0,0.00021321,2]
[392623941,1761754233002,-420.0,0.00021321,2]
[392623942,1761754233013,-300.0,0.00021321,2]
[392623943,1761754233023,-1475.0,0.00021348,2]
[392623944,1761754233036,-5000.0,0.00021356,2]
[392623945,1761754233046,-150.0,0.000214,2]
[392623947,1761754233060,-998.35962712,0.00021501,2]
[392623949,1761754233071,-500.0,0.00021618,2]
[392623950,1761754233082,-500.0,0.00021618,2]
[392623951,1761754233093,-500.0,0.00021618,2]
[392623952,1761754233105,-1000.0,0.00021618,2]
[392623953,1761754233116,-602.79,0.00021815,30]
[392623954,1761754233128,-517.58160213,0.00021918,2]
[392623955,1761754233138,-500.0,0.00021918,2]
[392623956,1761754233149,-720.0,0.00021987,20]
[392623957,1761754233160,-221.06751258,0.00021995,2]
[392623958,1761754233170,-39430.25,0.00022,7]
[392623959,1761754233180,-160.0,0.0002205,2]
[392623960,1761754233191,-1500.0,0.00022166,2]
[392623961,1761754233201,-351.63,0.00022185,2]
[392623962,1761754233211,-166.01670059,0.00022493,2]
[392623963,1761754233221,-260.0,0.00022598,2]
[392623964,1761754233230,-1500.0,0.00022714,2]
[392623965,1761754233240,-500.0,0.00022876,2]
[392623966,1761754233249,-1517.710696,0.000229,5]
[392623967,1761754233259,-1000.0,0.0002292,5]
[392623968,1761754233268,-183.80555077,0.00022924,2]
[392623969,1761754233277,-1000.0,0.0002294,5]
[392623970,1761754233286,-1000.0,0.0002296,5]
[392623971,1761754233296,-227.921,0.00022961,2]
[392623972,1761754233307,-1000.0,0.0002298,5]
[392623973,1761754233317,-1000.0,0.00023,5]
[392623974,1761754233326,-13382.45305387,0.00023,3]
[392623975,1761754233335,-500.0,0.00023013,2]
[392623976,1761754233345,-200.0,0.0002313,6]
[392623977,1761754233354,-360.0,0.00023146,2]
[392623978,1761754233364,-600.0,0.00023156,2]
[392623979,1761754233374,-500.0,0.00023185,2]
[392623980,1761754233383,-500.0,0.000232,2]
[392623981,1761754233392,-500.0,0.000232,2]
[392623982,1761754233402,-587.0,0.00023226,2]
[392623983,1761754233411,-1862.50630368,0.00023237,2]
[392623984,1761754233421,-500.0,0.00023241,2]
[392623985,1761754233430,-500.0,0.00023281,2]
[392623986,1761754233440,-500.0,0.00023325,2]
[392623987,1761754233450,-164.71411805,0.00023325,2]
[392623988,1761754233462,-342.55790923,0.00023325,2]
[392623989,1761754233477,-500.0,0.00023325,2]
[392623990,1761754233487,-500.0,0.00023325,2]
[392623991,1761754233496,-500.0,0.00023325,2]
[392623992,1761754233505,-500.0,0.00023325,2]
[392623993,1761754233514,-500.0,0.00023325,2]
[392623994,1761754233523,-500.0,0.00023325,2]
[392623995,1761754233532,-500.0,0.00023325,2]
[392623996,1761754233542,-500.0,0.00023325,2]
[392623997,1761754233552,-299.26557231,0.00023325,2]
[392623998,1761754233563,-500.0,0.00023325,2]
[392623999,1761754233573,-500.0,0.00023336,2]
[392624000,1761754233583,-500.0,0.00023392,2]
[392624001,1761754233592,-2000.0,0.00023395,7]
[392624002,1761754233602,-13382.45,0.000234,3]
[392624003,1761754233612,-500.0,0.00023427,2]
[392624004,1761754233622,-500.0,0.00023491,2]
[392624005,1761754233631,-998.35962712,0.00023502,2]
[392624006,1761754233640,-208.57990673,0.0002356,2]
[392624007,1761754233650,-300.0,0.000236,2]
[392624008,1761754233660,-300.0,0.000236,2]
[392624009,1761754233670,-300.0,0.000236,2]
[392624010,1761754233679,-460.0,0.00023694,2]
[392624011,1761754233689,-39430.25,0.000237,7]
[392624012,1761754233698,-500.0,0.00023836,2]
[392624013,1761754233707,-500.0,0.0002386,2]
[392624014,1761754233716,-1000.0,0.00023873,2]
[392624015,1761754233726,-1000.0,0.00023873,2]
[392624016,1761754233735,-1000.0,0.00023873,2]
[392624017,1761754233745,-1000.0,0.00023873,2]
[392624018,1761754233755,-1000.0,0.00023873,2]
[392624019,1761754233764,-250.32644807,0.00023995,2]
[392624020,1761754233774,-500.0,0.00024098,2]
[392624021,1761754233784,-864.0,0.00024185,20]
[392624022,1761754233793,-168.0,0.00024189,2]
[392624023,1761754233805,-168.0,0.000242,2]
[392624024,1761754233815,-199.0,0.00024219,12]
[392624025,1761754233825,-753.49,0.00024239,30]
[392624026,1761754233836,-500.0,0.00024239,2]
[392624027,1761754233851,-560.0,0.00024242,2]
[392624028,1761754233860,-600.0,0.00024252,2]
[392624029,1761754233871,-984.0,0.00024302,2]
[392624030,1761754233882,-633.0,0.00024302,2]
[392624031,1761754233894,-2167.0,0.00024302,2]
[392624032,1761754233903,-412.0,0.00024312,2]
[392624033,1761754233913,-175.07870392,0.0002439,2]
[392624034,1761754233922,-1000.0,0.00024421,2]
[392624035,1761754233931,-1000.0,0.00024421,2]
[392624036,1761754233941,-1500.0,0.00024421,2]
[392624037,1761754233950,-1500.0,0.00024421,2]
[392624038,1761754233960,-500.0,0.00024512,2]
[392624039,1761754233969,-183.80555077,0.000246,2]
[392624040,1761754233979,-40147.35,0.000246,3]
[392624041,1761754233988,-500.0,0.00024607,2]
[392624042,1761754233998,-200.0,0.00024658,15]
[392624043,1761754234008,-168.0,0.00024692,2]
[392624044,1761754234017,-201.0,0.000247,11]
[392624045,1761754234027,-151.0,0.000247,7]
[392624046,1761754234037,-151.0,0.000247,7]
[392624047,1761754234047,-151.0,0.000247,7]
[392624048,1761754234059,-235.330151,0.000247,7]
[392624049,1761754234069,-26764.9,0.000247,3]
[392624050,1761754234079,-851.0128344,0.00024764,2]
[392624051,1761754234088,-2803.4992082,0.00024764,2]
[392624052,1761754234097,-607.0,0.00024768,2]
[392624053,1761754234107,-2000.0,0.00024778,7]
[392624054,1761754234117,-660.0,0.0002479,2]
[392624055,1761754234126,-500.0,0.00024793,2]
[392624056,1761754234135,-2000.0,0.000248,2]
[392624057,1761754234145,-39430.25,0.000248,7]
[392624058,1761754234155,-166.0,0.000248,3]
[392624059,1761754234164,-166.0,0.000248,3]
[392624060,1761754234174,-205.94189592,0.000248,3]
[392624061,1761754234184,-607.0,0.00024823,2]
[392624062,1761754234194,-168.0,0.00024845,2]
[392624063,1761754234203,-150.0,0.00024873,2]
[392624064,1761754234213,-150.0,0.00024873,2]
[392624065,1761754234222,-500.0,0.00024874,2]
[392624066,1761754234231,-500.0,0.00024876,2]
[392624067,1761754234241,-607.0,0.00024878,2]
[392624068,1761754234250,-151.0,0.000249,7]
[392624069,1761754234260,-151.0,0.000249,7]
[392624070,1761754234270,-151.0,0.000249,7]
[392624071,1761754234280,-8137.3336093,0.000249,2]
[392624072,1761754234289,-692227.516146,0.000249,2]
[392624073,1761754234299,-168.0,0.00024916,2]
[392624074,1761754234310,-244.57541507,0.00024928,2]
[392624075,1761754234319,-537.97,0.00024931,2]
[392624076,1761754234328,-607.0,0.00024932,2]
[392624077,1761754234338,-293.85068442,0.00024964,2]
[392624078,1761754234347,-2000.0,0.00024969,2]
[392624079,1761754234356,-2000.0,0.00024969,2]
[392624080,1761754234366,-1172.570232,0.0002498,5]
[392624081,1761754234375,-607.0,0.00024987,2]
[392624082,1761754234385,-106042.75621113,0.00025,2]
[392624083,1761754234395,-3229.86590446,0.00025,5]
[392624084,1761754234404,-131505.99861102,0.00025,15]
[392624085,1761754234414,-1077.41848409,0.00025,2]
[392624086,1761754234423,-2654.77683984,0.00025,2]
[392624087,1761754234432,-27434.00787938,0.00025,3]
[392624088,1761754234445,-5572.50000001,0.00025,3]
[392624089,1761754234456,-558.85161902,0.00025,3]
[392624094,1761754238084,-500.0,0.00019611,2]
[392624096,1761754238095,-399.04326509,0.00019611,2]
[392624098,1761754238105,-500.0,0.00019611,2]
[392624099,1761754238115,-500.0,0.00019611,2]
[392624101,1761754238125,-433.15883515,0.00019611,2]
[392624103,1761754238135,-500.0,0.00019611,2]
[392624105,1761754238145,-500.0,0.00019611,2]
[392624107,1761754238154,-500.0,0.00019611,2]
[392624109,1761754238164,-500.0,0.00019611,2]
[392624110,1761754238174,-500.0,0.00019611,2]
[392624111,1761754238183,-500.0,0.00019611,2]
[392624112,1761754238194,-500.0,0.00019611,2]
[392624113,1761754238204,-500.0,0.00019611,2]
[392624114,1761754238213,-500.0,0.00019611,2]
[392624115,1761754238223,-410.79813093,0.00019611,2]
[392624116,1761754238233,-500.0,0.00019611,2]
[392624117,1761754238243,-500.0,0.00019611,2]
[392624118,1761754238252,-500.0,0.00019611,2]
[392624119,1761754238262,-500.0,0.00019611,2]
[392624120,1761754238271,-516.85520002,0.00019611,2]
[392624121,1761754238281,-438.17781905,0.00019611,2]
[392624122,1761754238291,-500.0,0.00019611,2]
[392624123,1761754238301,-249.70486338,0.00019611,2]
[392624124,1761754238314,-500.0,0.00019611,2]
[392624125,1761754238324,-170.11014468,0.00019611,2]
[392624126,1761754238336,-329.88985532,0.00019611,2]
[392624127,1761754238346,-500.0,0.00019611,2]
[392624128,1761754238355,-500.0,0.00019611,2]
[392624129,1761754238366,-500.0,0.00019611,2]
[392624130,1761754238376,-500.0,0.00019611,2]
[392624131,1761754238387,-500.0,0.00019611,2]
[392624132,1761754238397,-368.88,0.00020972,3]
[392624133,1761754238407,-500.0,0.0002107,2]
[392624134,1761754238417,-500.0,0.0002107,2]
[392624135,1761754238428,-500.0,0.0002107,2]
[392624136,1761754238438,-500.0,0.0002107,2]
[392624137,1761754238449,-500.0,0.00021618,2]
[392624138,1761754238459,-1127.02110655,0.00021618,2]
[392624139,1761754238472,-500.0,0.00021618,2]
[392624140,1761754238482,-1000.0,0.00021618,2]
[392624141,1761754238492,-1500.0,0.00022166,2]
[392624142,1761754238502,-2000.0,0.00022714,2]
[392624143,1761754238512,-2500.0,0.00023262,2]
[392624144,1761754238521,-3000.0,0.0002381,2]
[392624145,1761754238531,-930.82465992,0.00024358,2]
[392624146,1761754238543,-2569.17534008,0.00024358,2]
[392624147,1761754238553,-3173.1875799,0.0002479,10]
[392624148,1761754239213,-1037.59194052,0.0002479,10]
[392624149,1761754240485,-1239.79628708,0.00019573,2]
[392624150,1761754240495,-1281.47047958,0.0002479,10]
[392624151,1761754240505,-4000.0,0.00024906,2]
[392624152,1761754240514,-6434.64050159,0.00025,3]
[392624153,1761754240524,-10364.0,0.00025,2]
[392624154,1761754240533,-665.96993019,0.00025,2]
[392624155,1761754240542,-1170.37010158,0.00025,2]
[392624156,1761754240551,-600.0,0.00025,2]
[392624157,1761754240562,-3163.03269997,0.00025,2]
[392624189,1761754243429,-2783.75,0.00025,2]
[392624190,1761754243441,-6809.83094907,0.00025,2]
[392624191,1761754243451,-198.8,0.00025,2]
[392624192,1761754243460,-641.444,0.00025,30]
[392624193,1761754243470,-1000.0,0.00025,5]
[392624194,1761754243479,-151.0,0.00025,7]
[392624195,1761754243488,-151.0,0.00025,7]
[392624196,1761754243498,-151.0,0.00025,7]
[392624197,1761754243508,-151.0,0.00025,7]
[392624198,1761754243517,-151.0,0.00025,7]
[392624199,1761754243526,-151.0,0.00025,7]
[392624200,1761754243535,-607.0,0.00025042,2]
[392624201,1761754243545,-607.0,0.00025097,2]
[392624202,1761754243555,-168.0,0.00025132,2]
[392624203,1761754243565,-607.0,0.00025152,2]
[392624204,1761754243575,-574.14274028,0.000252,5]
[392624205,1761754243584,-537.97,0.00025205,2]
[392624206,1761754243593,-607.0,0.00025206,2]
[392624207,1761754243603,-500.0,0.00025216,7]
[392624208,1761754243613,-607.0,0.00025261,2]
[392624209,1761754243621,-500.0,0.00025276,7]
[392624210,1761754243631,-823.0,0.00025302,2]
[392624211,1761754243640,-607.0,0.00025316,2]
[392624212,1761754243649,-383.71407802,0.00025323,2]
[392624213,1761754243659,-500.0,0.00025324,7]
[392624214,1761754243669,-760.0,0.00025338,2]
[392624215,1761754243679,-500.0,0.0002534,7]
[392624216,1761754243689,-600.0,0.00025348,2]
[392624217,1761754243699,-607.0,0.00025371,2]
[392624218,1761754243708,-383.71407802,0.00025396,5]
[392624219,1761754243718,-250.0,0.00025421,2]
[392624220,1761754243727,-300.0,0.00025421,2]
[392624221,1761754243736,-607.0,0.00025426,2]
[392624222,1761754243746,-4500.0,0.00025454,2]
[392624223,1761754243755,-900.0,0.00025469,3]
[392624224,1761754243765,-383.71407802,0.0002547,9]
[392624225,1761754243774,-537.97,0.00025479,2]
[392624226,1761754243785,-607.0,0.0002548,2]
[392624227,1761754243794,-1000.0,0.000255,2]
[392624228,1761754243804,-998.35962712,0.00025502,2]
[392624229,1761754243814,-1880.94510484,0.00025517,2]
[392624230,1761754243823,-2500.0,0.00025517,2]
[392624231,1761754243832,-607.0,0.00025535,2]
[392624232,1761754243846,-383.71407802,0.00025543,13]
[392624233,1761754243856,-607.0,0.0002559,2]
[392624234,1761754243867,-383.71407802,0.00025617,16]
[392624235,1761754243877,-607.0,0.00025645,2]
[392624236,1761754243887,-51.04490814,0.0002569,20]
[392624237,1761754243899,-332.66916988,0.0002569,20]
[392624238,1761754243909,-607.0,0.000257,2]
[392624239,1761754243920,-500.0,0.00025708,7]
[392624240,1761754243933,-537.97,0.00025753,2]
[392624241,1761754243943,-607.0,0.00025754,2]
[392624242,1761754243952,-383.71407802,0.00025764,24]
[392624243,1761754243962,-496.36917147,0.00025769,2]
[392624244,1761754243971,-500.0,0.00025779,7]
[392624245,1761754243981,-2000.0,0.000258,2]
[392624246,1761754243990,-607.0,0.00025809,2]
[392624247,1761754243999,-383.71407802,0.00025837,28]
[392624248,1761754244008,-607.0,0.00025864,2]
[392624249,1761754244017,-25000.13837003,0.0002587,7]
[392624250,1761754244027,-151.0,0.0002587,7]
[392624251,1761754244037,-151.0,0.0002587,7]
[392624252,1761754244047,-151.0,0.0002587,7]
[392624253,1761754244056,-703.26,0.00025883,2]
[392624254,1761754244066,-860.0,0.00025886,2]
[392624255,1761754244076,-39430.25,0.000259,7]
[392624256,1761754244085,-383.71407802,0.00025911,31]
[392624257,1761754244095,-500.0,0.00025913,7]
[392624258,1761754244104,-607.0,0.00025919,2]
[392624259,1761754244113,-496.36917147,0.00025924,9]
[392624260,1761754244122,-500.0,0.00025926,7]
[392624261,1761754244131,-350.0,0.00025968,2]
[392624262,1761754244141,-241.84818759,0.00025968,2]
[392624263,1761754244151,-607.0,0.00025973,2]
[392624264,1761754244161,-244.57541507,0.00025978,56]
[392624265,1761754244170,-383.71407802,0.00025985,35]
[392624266,1761754244179,-279.58538356,0.00025995,2]
[392624267,1761754244189,-154.96424443,0.00026,2]
[392624268,1761754244198,-525.78030862,0.00026,2]
[392624269,1761754244208,-19900.0,0.00026,2]
[392624270,1761754244217,-4553.75190902,0.00026002,2]
[392624271,1761754244226,-537.97,0.00026027,2]
[392624272,1761754244235,-624.58694127,0.00026028,2]
[392624273,1761754244244,-383.71407802,0.00026058,39]
[392624274,1761754244254,-3000.0,0.00026065,2]
[392624275,1761754244263,-496.36917147,0.00026079,17]
[392624276,1761754244272,-553.32,0.0002609,3]
[392624277,1761754244283,-2832.31893039,0.000261,7]
[392624278,1761754244291,-383.71407802,0.00026132,42]
[392624279,1761754244301,-193.09932084,0.0002616,2]
[392624280,1761754244311,-2000.0,0.00026162,7]
[392624281,1761754244320,-477.996115,0.00026176,2]
[392624282,1761754244330,-500.0,0.00026194,7]
[392624283,1761754244339,-383.71407802,0.00026205,46]
[392624284,1761754244348,-496.36917147,0.00026234,25]
[392624285,1761754244358,-500.0,0.00026266,7]
[392624286,1761754244368,-383.71407802,0.00026279,50]
[392624287,1761754244377,-537.97,0.00026301,2]
[392624288,1761754244387,-500.0,0.0002635,7]
[392624289,1761754244397,-383.71407802,0.00026352,54]
[392624290,1761754244406,-496.36917147,0.00026389,32]
[392624291,1761754244415,-383.71407802,0.00026426,57]
[392624292,1761754244424,-960.0,0.00026434,2]
[392624293,1761754244433,-600.0,0.00026444,2]
[392624294,1761754244442,-157.801976,0.00026479,5]
[392624295,1761754244451,-383.71407802,0.00026499,61]
[392624296,1761754244460,-450.0,0.00026516,2]
[392624297,1761754244469,-500.0,0.00026526,7]
[392624298,1761754244478,-496.36917147,0.00026544,40]
[392624299,1761754244486,-157.801976,0.0002656,2]
[392624300,1761754244495,-383.71407802,0.00026573,65]
[392624301,1761754244504,-537.97,0.00026575,2]
[392624302,1761754244512,-1000.0,0.00026604,30]
[392624303,1761754244521,-3500.0,0.00026613,2]
[392624304,1761754244530,-383.71407802,0.00026646,69]
[392624305,1761754244539,-500.0,0.00026656,7]
[392624306,1761754244548,-904.19,0.00026663,30]
[392624307,1761754244557,-759.447494,0.00026676,2]
[392624308,1761754244567,-500.0,0.00026687,7]
[392624309,1761754244576,-500.0,0.00026689,7]
[392624310,1761754244585,-496.36917147,0.00026699,48]
[392624311,1761754244595,-383.71407802,0.0002672,72]
[392624312,1761754244604,-500.0,0.00026739,7]
[392624313,1761754244614,-500.0,0.00026759,7]
[392624314,1761754244624,-383.71407802,0.00026793,76]
[392624315,1761754244633,-1121.199999,0.000268,2]
[392624316,1761754244642,-537.97,0.00026849,2]
[392624317,1761754244652,-496.36917147,0.00026854,56]
[392624318,1761754244661,-383.71407802,0.00026867,80]
[392624319,1761754244671,-500.0,0.00026897,7]
[392624320,1761754244680,-1862.50630368,0.000269,2]
[392624321,1761754244689,-500.0,0.00026914,7]
[392624322,1761754244698,-383.71407802,0.0002694,83]
[392624323,1761754244708,-8137.33360928,0.00026949,2]
[392624324,1761754244717,-1060.0,0.00026982,2]
[392624325,1761754244727,-88522.6979796,0.00027,2]
[392624336,1761754246289,-23687.02520645,0.00027,2]
[392624337,1761754246299,-207.0,0.00027,7]
[392624338,1761754246309,-3423.54767206,0.00027,5]
[392624339,1761754246321,-7892.56395796,0.00027,2]
[392624340,1761754246331,-500.0,0.00027,15]
[392624341,1761754246340,-1136.74284469,0.00027,2]
[392624342,1761754246350,-496.36917147,0.00027009,63]
[392624343,1761754246359,-383.71407802,0.00027014,87]
[392624344,1761754246369,-244.57541507,0.00027027,110]
[392624345,1761754246378,-500.0,0.00027032,7]
[392624346,1761754246387,-550.0,0.00027064,2]
[392624347,1761754246397,-383.71407802,0.00027088,91]
[392624348,1761754246406,-500.0,0.00027088,7]
[392624349,1761754246416,-200.0,0.000271,7]
[392624350,1761754246425,-537.97,0.00027123,2]
[392624351,1761754246435,-1009.0784476,0.00027123,3]
[392624352,1761754246444,-4000.0,0.00027161,2]
[392624353,1761754246454,-383.71407802,0.00027161,95]
[392624354,1761754246463,-496.36917147,0.00027164,71]
[392624355,1761754246473,-157.801976,0.000272,4]
[392624356,1761754246482,-383.71407802,0.00027235,98]
[392624357,1761754246492,-500.0,0.000273,7]
[392624358,1761754246501,-984.0,0.00027302,2]
[392624359,1761754246511,-633.0,0.00027302,2]
[392624360,1761754246520,-2167.0,0.00027302,2]
[392624361,1761754246530,-383.71407802,0.00027308,102]
[392624362,1761754246539,-496.36917147,0.00027319,79]
[392624363,1761754246548,-500.0,0.00027319,7]
[392624364,1761754246557,-383.71407802,0.00027382,106]
[392624365,1761754246568,-198.90968687,0.0002739,2]
[392624366,1761754246577,-150.0,0.0002739,2]
[392624367,1761754246587,-537.97,0.00027397,2]
[392624368,1761754246596,-1000.0,0.00027397,2]
[392624369,1761754246605,-876.72515167,0.00027397,2]
[392624370,1761754246614,-170.91698318,0.00027397,2]
[392624371,1761754246624,-500.0,0.00027397,2]
[392624372,1761754246633,-2502.83,0.00027397,2]
[392624373,1761754246643,-1000.0,0.00027397,2]
[392624374,1761754246652,-151.0,0.00027397,2]
[392624375,1761754246661,-151.0,0.00027397,2]
[392624376,1761754246670,-500.0,0.00027397,2]
[392624377,1761754246679,-151.0,0.00027397,31]
[392624378,1761754246688,-156.09069,0.00027397,31]
[392624379,1761754246698,-151.0,0.00027397,31]